bitfinex/quotes_BTCUSD_20250420
["timestamp","ask_amount","ask_price","bid_price","bid_amount"]
[1745156390883,0.0004206,84203.0,84192.0,0.0463]
[1745156390884,0.0004206,84203.0,84200.0,0.00533252]
[1745156391289,0.0004206,84203.0,84201.0,0.00237503]
[1745156391489,0.0004206,84203.0,84201.0,0.00533252]
[1745156391701,0.0004206,84203.0,84202.0,0.00237501]
[1745156391909,0.0004206,84203.0,84202.0,0.10531508]
[1745156392214,0.0473206,84219.0,84202.0,0.10531508]
[1745156392215,0.0473206,84219.0,84202.0,0.10631508]
[1745156392387,0.00013529,84211.0,84204.0,0.1]
[1745156392582,0.00013529,84211.0,84205.0,0.00237475]
[1745156392804,0.00013529,84211.0,84206.0,0.00530261]
[1745156393048,0.00013529,84211.0,84207.0,0.00237473]
[1745156393260,0.00013529,84211.0,84208.0,0.00530261]
[1745156395184,0.00013529,84211.0,84208.0,0.10530261]
[1745156395421,0.00013529,84211.0,84209.0,1.69392]
[1745156395640,0.00013529,84211.0,84210.0,0.00527637]
[1745156396013,0.04723529,84211.0,84210.0,0.00527637]
[1745156399219,0.04723529,84211.0,84207.0,0.00882755]
[1745156399438,0.04723529,84211.0,84208.0,0.1]
[1745156399600,0.04723529,84211.0,84209.0,0.00527637]
[1745156400039,0.04723529,84211.0,84192.0,0.0499]
[1745156400185,0.04723529,84211.0,84208.0,0.1]
[1745156400608,0.04723529,84211.0,84209.0,0.00523026]
[1745156401032,0.04723529,84211.0,84193.0,0.11944791]
[1745156401347,0.04723529,84211.0,84204.0,0.1]
[1745156401980,0.04723529,84211.0,84205.0,0.00523026]
[1745156402607,0.04723529,84211.0,84194.0,0.34]
[1745156402852,0.04723529,84211.0,84204.0,0.1]
[1745156403335,0.04723529,84211.0,84205.0,0.34523026]
[1745156403545,0.00013529,84211.0,84205.0,0.44523026]
[1745156405183,0.00013529,84211.0,84206.0,0.00237476]
[1745156405403,0.00013529,84211.0,84207.0,0.34]
[1745156405638,0.00013529,84211.0,84208.0,0.00237468]
[1745156405868,0.00013529,84211.0,84209.0,0.34]
[1745156406091,0.00013529,84211.0,84210.0,0.00762154]
[1745156406320,0.00013529,84211.0,84210.0,0.10762154]
[1745156406523,0.00013529,84211.0,84210.0,0.10862154]
[1745156409536,0.00013529,84211.0,84210.0,0.44624686]
[1745156412965,0.00081759,84229.0,84210.0,0.10624686]
[1745156413097,0.00081759,84229.0,84216.0,0.1]
[1745156413298,0.00081759,84229.0,84217.0,0.00237453]
[1745156413727,0.00081759,84229.0,84218.0,0.00524686]
[1745156413925,0.00081759,84229.0,84203.0,0.0467]
[1745156414127,0.00081759,84229.0,84216.0,0.1]
[1745156414763,0.00081759,84229.0,84217.0,0.00519436]
[1745156415501,0.00081759,84229.0,84218.0,1.35316]
[1745156415727,0.00081759,84229.0,84219.0,0.13348]
[1745156415953,0.00081759,84229.0,84219.0,0.13867436]
[1745156416755,0.00081759,84229.0,84220.0,0.34]
[1745156417328,0.00081759,84229.0,84221.0,0.00519436]
[1745156418344,0.00081759,84229.0,84221.0,0.03661387]
[1745156418601,0.00081759,84229.0,84221.0,0.00519436]
[1745156420337,0.00081759,84229.0,84222.0,0.00237454]
[1745156420808,0.00081759,84229.0,84227.0,0.1]
[1745156421449,0.00081759,84229.0,84228.0,0.00519436]
[1745156421882,0.00081759,84229.0,84220.0,0.00237442]
[1745156422095,0.00081759,84229.0,84227.0,0.1]
[1745156422301,0.00081759,84229.0,84228.0,0.00237442]
[1745156422511,0.0497206,84245.0,84228.0,0.21944791]
[1745156422713,0.00013527,84239.0,84231.0,0.1]
[1745156423088,0.00013527,84239.0,84232.0,0.00508987]
[1745156423500,0.00013527,84239.0,84229.0,0.34]
[1745156423679,0.00013527,84239.0,84233.0,0.00508987]
[1745156425132,0.00013527,84239.0,84230.0,0.34]
[1745156425325,0.00013527,84239.0,84232.0,0.34]
[1745156425962,0.00013527,84239.0,84233.0,0.00500239]
[1745156426364,0.00013527,84239.0,84234.0,0.00237401]
[1745156426561,0.00013527,84239.0,84235.0,0.44]
[1745156426772,0.00013527,84239.0,84236.0,0.00237401]
[1745156426941,0.0497206,84245.0,84236.0,0.0073764]
[1745156427153,0.0497206,84245.0,84236.0,0.00237401]
[1745156427358,0.0497206,84245.0,84237.0,0.00500239]
[1745156427914,0.0497206,84245.0,84238.0,0.00500239]
[1745156428390,0.0497206,84245.0,84233.0,0.002374]
[1745156428546,0.0497206,84245.0,84239.0,0.00500239]
[1745156428749,0.0497206,84245.0,84236.0,0.002374]
[1745156428953,0.0497206,84245.0,84240.0,0.00500239]
[1745156429157,0.0497206,84245.0,84233.0,0.002374]
[1745156429353,0.0497206,84245.0,84241.0,0.1]
[1745156429839,0.0497206,84245.0,84242.0,0.00500239]
[1745156430045,0.0004206,84245.0,84242.0,0.00500239]
[1745156430365,0.0004206,84245.0,84243.0,0.1]
[1745156430761,0.0004206,84245.0,84243.0,0.10500239]
[1745156431416,0.0004206,84245.0,84243.0,0.10806304]
[1745156433175,0.0004206,84245.0,84243.0,0.00806304]
[1745156433382,0.0004206,84245.0,84243.0,0.10806304]
[1745156433584,0.0004206,84245.0,84243.0,0.1]
[1745156433790,0.0004206,84245.0,84243.0,0.10805084]
[1745156435280,0.0004206,84245.0,84243.0,1.46181084]
[1745156435941,0.0004206,84245.0,84243.0,1.58125875]
[1745156436339,0.0004206,84245.0,84243.0,0.36189875]
[1745156436783,0.0004206,84245.0,84243.0,0.22749875]
[1745156436921,0.0004206,84245.0,84243.0,0.22987241]
[1745156437906,0.0004206,84245.0,84243.0,0.10805084]
[1745156438107,0.0004206,84245.0,84243.0,0.44805084]
[1745156442045,0.0004206,84245.0,84243.0,0.56749875]
[1745156445362,0.0004206,84245.0,84243.0,1.92105875]
[1745156447341,0.0052616,84255.0,84243.0,1.58105875]
[1745156447524,0.0052616,84255.0,84251.0,0.1]
[1745156447956,0.0052616,84255.0,84252.0,0.00796622]
[1745156448472,0.0052616,84255.0,84244.0,0.11944791]
[1745156448685,0.0052616,84255.0,84253.0,0.00796622]
[1745156448886,0.0052616,84255.0,84244.0,0.11944791]
[1745156449058,0.0052616,84255.0,84254.0,0.00796622]
[1745156449258,0.0052616,84255.0,84245.0,0.34]
[1745156449462,0.0052616,84255.0,84254.0,0.00796622]
[1745156449667,0.0052616,84255.0,84252.0,0.34]
[1745156449878,0.049,84264.0,84253.0,0.12182141]
[1745156450083,0.049,84264.0,84253.0,0.12675028]
[1745156451546,0.0014203,84278.0,84253.0,0.12675028]
[1745156451880,0.0014203,84278.0,84254.0,0.34]
[1745156452083,0.0014203,84278.0,84254.0,0.45944791]
[1745156452296,0.0014203,84278.0,84255.0,0.00730237]
[1745156453510,0.00053079,84267.0,84255.0,0.00730237]
[1745156455369,0.00053079,84267.0,84256.0,1.35348]
[1745156456007,0.00053079,84267.0,84257.0,0.00730237]
[1745156459385,0.0491,84266.0,84257.0,0.00730237]
[1745156459601,0.0491,84266.0,84237.0,0.0467]
[1745156459820,0.0491,84266.0,84251.0,0.1]
[1745156460506,0.0491,84266.0,84252.0,0.00722737]
[1745156460938,0.0491,84266.0,84249.0,0.00868309]
[1745156461128,0.0491,84266.0,84251.0,0.1]
[1745156461838,0.0491,84266.0,84252.0,0.00722737]
[1745156462492,0.0491,84266.0,84241.0,0.00237362]
[1745156462730,0.0491,84266.0,84251.0,0.1]
[1745156463199,0.0491,84266.0,84252.0,0.00722737]
[1745156463909,0.0491,84266.0,84242.0,0.11944791]
[1745156464153,0.0491,84266.0,84253.0,0.00722737]
[1745156464388,0.0491,84266.0,84242.0,0.11944791]
[1745156464619,0.0491,84266.0,84254.0,0.00722737]
[1745156464847,0.0491,84266.0,84242.0,0.11944791]
[1745156465071,0.0491,84266.0,84255.0,0.00722737]
[1745156465308,0.0491,84266.0,84256.0,1.35628]
[1745156465762,0.0491,84266.0,84257.0,0.00722737]
[1745156468422,0.001,84260.0,84258.0,0.13724]
[1745156468668,0.0468,84259.0,84258.0,0.13724]
[1745156469147,0.0478,84257.0,84256.0,1.21904]
[1745156469379,0.16724791,84257.0,84256.0,1.35628]
[1745156469608,0.16824791,84257.0,84256.0,1.35628]
[1745156470069,0.16824791,84257.0,84256.0,1.21904]
[1745156470295,0.0478,84257.0,84256.0,1.35628]
[1745156471145,0.046,84259.0,84256.0,1.35628]
[1745156471820,0.001,84262.0,84256.0,1.35628]
[1745156478817,0.001,84262.0,84257.0,0.00724052]
[1745156480786,0.001,84263.0,84257.0,0.00724052]
[1745156480994,0.001,84261.0,84257.0,0.00724052]
[1745156487747,0.0005,84261.0,84257.0,0.00724052]
[1745156491969,0.0465,84258.0,84257.0,0.00724052]
[1745156492304,0.21564791,84258.0,84257.0,0.00724052]
[1745156492473,0.21664791,84258.0,84257.0,0.14336052]
[1745156497558,0.61741684,84258.0,84257.0,0.14336052]
[1745156503893,0.57141684,84258.0,84257.0,0.14336052]
[1745156506090,0.57041684,84258.0,84257.0,0.14336052]
[1745156506532,0.52071684,84258.0,84257.0,0.14336052]
[1745156506727,0.52071684,84258.0,84257.0,0.00724052]
[1745156506927,0.40126893,84258.0,84257.0,0.14340052]
[1745156518357,0.40126893,84258.0,84257.0,1.36270908]
[1745156526978,0.0005,84258.0,84257.0,1.36270908]
[1745156551043,0.0005,84258.0,84257.0,1.22654908]
[1745156551252,0.0005,84258.0,84257.0,1.36206908]
[1745156556437,0.0005,84258.0,84257.0,0.00726908]
[1745156556614,0.0005,84258.0,84245.0,0.0455]
[1745156556816,0.0005,84258.0,84246.0,0.00604932]
[1745156557742,0.0005,84258.0,84247.0,1.3542]
[1745156558149,0.0005,84258.0,84248.0,0.00554522]
[1745156562691,0.0005,84258.0,84249.0,0.13496]
[1745156563296,0.0005,84258.0,84250.0,0.00554522]
[1745156567431,0.0005,84258.0,84251.0,1.21924]
[1745156567788,0.0005,84258.0,84252.0,0.00554522]
[1745156572280,0.0005,84258.0,84253.0,0.13496]
[1745156572999,0.0005,84258.0,84254.0,0.00554522]
[1745156577063,0.0005,84258.0,84255.0,1.21924]
[1745156577399,0.0005,84258.0,84256.0,0.00554522]
[1745156581871,0.0005,84258.0,84257.0,0.13496]
[1745156582073,0.0005,84258.0,84257.0,0.14050848]
[1745156582473,0.12094791,84258.0,84257.0,0.00554848]
[1745156582702,0.21224791,84258.0,84257.0,0.13496]
[1745156582962,0.21224791,84258.0,84257.0,0.14051536]
[1745156585516,0.61301684,84258.0,84257.0,0.14051536]
[1745156588869,0.61301684,84258.0,84257.0,0.14019536]
[1745156590230,0.62755769,84258.0,84257.0,0.14019536]
[1745156590826,0.62755769,84258.0,84257.0,1.354]
[1745156591103,0.62755769,84258.0,84257.0,1.35913647]
[1745156591831,0.75225769,84258.0,84257.0,1.35913647]
[1745156591952,0.62755769,84258.0,84257.0,1.35913647]
[1745156596662,0.62755769,84258.0,84257.0,1.35878843]
[1745156596663,0.63445769,84258.0,84257.0,1.35878843]
[1745156597446,0.19935627,84220.0,84193.0,0.01454085]
[1745156597605,0.19935627,84220.0,84219.0,0.1]
[1745156597812,0.19935627,84229.0,84219.0,0.1]
[1745156598706,0.0005,84221.0,84219.0,0.10013527]
[1745156599079,0.0005,84221.0,84220.0,0.00431606]
[1745156601771,0.0005,84226.0,84220.0,0.00531606]
[1745156602146,0.0005,84226.0,84219.0,0.00013527]
[1745156602287,0.0005,84226.0,84219.0,0.00113527]
[1745156605029,0.0005,84226.0,84219.0,0.00013527]
[1745156605261,0.0005,84226.0,84220.0,1.3542]
[1745156605458,0.0005,84226.0,84221.0,0.00446922]
[1745156609565,0.0005,84222.0,84221.0,0.00446922]
[1745156609967,0.0005,84222.0,84221.0,0.13914922]
[1745156610937,0.0005,84222.0,84221.0,0.00446922]
[1745156610938,0.21764791,84222.0,84221.0,0.00446922]
[1745156611123,0.21764791,84222.0,84221.0,0.13914922]
[1745156614844,0.61841684,84222.0,84221.0,0.13914922]
[1745156617648,0.61841684,84222.0,84221.0,0.1607218]
[1745156619683,0.61841684,84222.0,84221.0,0.13464]
[1745156619876,0.61841684,84222.0,84221.0,0.13876508]
[1745156621981,0.61841684,84222.0,84221.0,0.16088353]
[1745156625299,0.61841684,84222.0,84221.0,1.38068353]
[1745156650944,0.40076893,84222.0,84221.0,1.38068353]
[1745156655992,0.0005,84226.0,84221.0,1.38068353]
[1745156673886,0.0005,84226.0,84222.0,0.13352]
[1745156674045,0.0005,84226.0,84222.0,0.13763404]
[1745156678654,0.0005,84226.0,84223.0,1.21972]
[1745156678995,0.0005,84226.0,84224.0,0.00411701]
[1745156683515,0.0005,84226.0,84225.0,0.1326]
[1745156684162,0.0005,84226.0,84225.0,0.13671701]
[1745156690366,0.0005,84226.0,84225.0,1.35643701]
[1745156695475,0.21614791,84226.0,84225.0,1.35643701]
[1745156699576,0.21714791,84226.0,84225.0,1.35643701]
[1745156699993,0.21614791,84226.0,84225.0,1.35643701]
[1745156702800,0.61691684,84226.0,84225.0,1.35643701]
[1745156708378,0.40126893,84226.0,84225.0,1.35643701]
[1745156708948,0.0005,84226.0,84225.0,1.35643701]
[1745156710853,0.0005,84226.0,84225.0,1.35611283]
[1745156713046,0.0005,84226.0,84225.0,1.69611283]
[1745156715587,0.0005,84226.0,84225.0,1.69711283]
[1745156719060,0.0005,84226.0,84225.0,1.69611283]
[1745156719479,0.0005,84226.0,84225.0,1.56351283]
[1745156719697,0.0005,84226.0,84225.0,1.69611283]
[1745156719919,0.0456,84226.0,84225.0,1.69611283]
[1745156732700,0.0005,84226.0,84225.0,1.69611283]
[1745156737720,0.0487,84231.0,84225.0,1.69611283]
[1745156737941,0.0005,84228.0,84226.0,0.1326]
[1745156738184,0.0487,84231.0,84226.0,0.1326]
[1745156738416,0.0487,84231.0,84227.0,0.00355023]
[1745156738709,0.0482,84231.0,84227.0,0.00355023]
[1745156738944,0.0487,84231.0,84227.0,0.00355023]
[1745156739138,0.0482,84231.0,84227.0,0.00355023]
[1745156739295,0.40076893,84233.0,84227.0,0.00355023]
[1745156741647,0.40076893,84233.0,84227.0,0.34355023]
[1745156743583,0.40076893,84233.0,84228.0,0.00325438]
[1745156743728,0.40076893,84233.0,84226.0,0.1326]
[1745156743931,0.0005,84235.0,84226.0,0.1326]
[1745156744130,0.0005,84235.0,84227.0,0.00323285]
[1745156744360,0.0459,84236.0,84228.0,0.0023743]
[1745156744919,0.0459,84236.0,84229.0,0.00323285]
[1745156745705,0.0459,84236.0,84229.0,0.00237422]
[1745156746043,0.0459,84236.0,84230.0,0.00319728]
[1745156746962,0.0459,84236.0,84226.0,0.1326]
[1745156747230,0.0459,84236.0,84227.0,0.00319728]
[1745156747637,0.0459,84236.0,84228.0,0.00237422]
[1745156748051,0.0459,84236.0,84229.0,0.00319728]
[1745156748693,0.0459,84236.0,84226.0,0.1326]
[1745156748889,0.0459,84236.0,84230.0,0.00319728]
[1745156749091,0.0459,84236.0,84226.0,0.1326]
[1745156749296,0.0459,84236.0,84231.0,0.00319728]
[1745156749501,0.0459,84236.0,84226.0,0.1326]
[1745156750020,0.0459,84236.0,84227.0,0.00319728]
[1745156753311,0.0459,84236.0,84228.0,0.00237422]
[1745156753704,0.0459,84236.0,84229.0,0.00319449]
[1745156753952,0.0459,84236.0,84229.0,0.0055687]
[1745156754152,0.40076893,84247.0,84229.0,0.0055687]
[1745156754153,0.0005,84241.0,84229.0,0.0055687]
[1745156754467,0.0005,84240.0,84229.0,0.0055687]
[1745156754973,0.0452,84242.0,84229.0,0.0055687]
[1745156755683,0.0005,84241.0,84229.0,0.0055687]
[1745156756412,0.0452,84242.0,84229.0,0.0055687]
[1745156756608,0.0481,84245.0,84229.0,0.0055687]
[1745156756814,0.0005,84243.0,84229.0,0.0055687]
[1745156757176,0.0481,84245.0,84229.0,0.0055687]
[1745156757374,0.0481,84245.0,84230.0,0.34]
[1745156757713,0.0481,84245.0,84231.0,0.00553317]
[1745156758113,0.0486,84245.0,84231.0,0.00553317]
[1745156758738,0.0481,84245.0,84231.0,0.00553317]
[1745156760090,0.0486,84245.0,84231.0,0.00553317]
[1745156760606,0.0486,84245.0,84231.0,0.00315918]
[1745156760807,0.0486,84245.0,84227.0,0.34]
[1745156761034,0.0486,84245.0,84229.0,0.1]
[1745156761445,0.0486,84245.0,84230.0,0.00315918]
[1745156762154,0.0486,84245.0,84226.0,0.1326]
[1745156762337,0.0486,84245.0,84231.0,0.00315918]
[1745156762534,0.0486,84245.0,84226.0,0.1326]
[1745156762872,0.0486,84245.0,84229.0,0.1]
[1745156763278,0.0478,84244.0,84229.0,0.1]
[1745156763479,0.0478,84244.0,84230.0,0.00315918]
[1745156764007,0.0478,84244.0,84227.0,0.13256]
[1745156764154,0.0478,84244.0,84231.0,0.00314564]
[1745156764493,0.0478,84244.0,84232.0,0.00314571]
[1745156764997,0.0478,84244.0,84227.0,0.13256]
[1745156765153,0.0478,84244.0,84233.0,0.00314571]
[1745156765359,0.0478,84244.0,84227.0,0.13256]
[1745156765558,0.0478,84244.0,84234.0,1.2225052]
[1745156765931,0.0478,84244.0,84235.0,0.0031452]
[1745156768213,0.0005,84243.0,84235.0,0.0031452]
[1745156768418,0.0483,84242.0,84235.0,0.0031452]
[1745156768592,0.0483,84236.0,84235.0,0.0031452]
[1745156768800,0.0483,84236.0,84235.0,0.1357052]
[1745156770078,0.0987,84236.0,84235.0,0.1357052]
[1745156770968,0.0977,84236.0,84235.0,0.4757052]
[1745156771178,0.21814791,84236.0,84235.0,0.4757052]
[1745156771391,0.21814791,84236.0,84235.0,0.4756652]
[1745156773021,0.61891684,84236.0,84235.0,0.0031452]
[1745156773194,0.61411684,84236.0,84235.0,1.35474546]
[1745156773551,0.61411684,84236.0,84235.0,1.22222546]
[1745156773784,0.61411684,84236.0,84235.0,1.35474546]
[1745156774166,0.61411684,84236.0,84221.0,0.02211845]
[1745156774344,0.19935627,84231.0,84221.0,0.02211845]
[1745156774551,0.0924,84229.0,84191.0,0.000842]
[1745156774760,0.0005,84216.0,84207.0,0.1]
[1745156774939,0.046,84215.0,84207.0,0.1]
[1745156775141,0.046,84215.0,84208.0,0.00270386]
[1745156775414,0.046,84215.0,84209.0,1.35196]
[1745156775562,0.0465,84215.0,84209.0,1.35467195]
[1745156775767,0.0465,84215.0,84209.0,1.37629384]
[1745156779603,0.046,84215.0,84209.0,1.37629384]
[1745156780358,0.0465,84215.0,84209.0,1.37629384]
[1745156787458,0.0482,84213.0,84209.0,1.37629384]
[1745156794939,0.0482,84213.0,84209.0,1.24377384]
[1745156795160,0.0005,84210.0,84209.0,1.24377384]
[1745156795381,0.0947,84210.0,84209.0,1.37633384]
[1745156795609,0.0957,84210.0,84209.0,1.37633384]
[1745156801536,0.21514791,84210.0,84209.0,1.37633384]
[1745156805604,0.61591684,84210.0,84209.0,1.37633384]
[1745156807859,0.61591684,84210.0,84209.0,1.24377384]
[1745156808087,0.61591684,84210.0,84209.0,1.37633384]
[1745156809184,0.61491684,84210.0,84209.0,1.37633384]
[1745156823670,0.61491684,84210.0,84209.0,0.15689384]
[1745156823866,0.66491684,84210.0,84209.0,1.35252]
[1745156824101,0.66491684,84210.0,84209.0,1.35515872]
[1745156824430,0.66491684,84210.0,84209.0,1.37449907]
[1745156838481,0.54546893,84210.0,84209.0,1.37449907]
[1745156839242,0.54546893,84210.0,84209.0,1.23689907]
[1745156839454,0.54546893,84210.0,84209.0,1.37187336]
[1745156842241,0.66491684,84210.0,84209.0,1.37187336]
[1745156842715,0.66591684,84210.0,84209.0,1.35489429]
[1745156843650,0.68045769,84210.0,84209.0,1.35489429]
[1745156844130,0.68045769,84210.0,84175.0,0.0004207]
[1745156844131,0.0005,84180.0,84175.0,0.0004207]
[1745156844363,0.0005,84180.0,84177.0,0.1]
[1745156844596,0.0005,84180.0,84175.0,0.00053862]
[1745156844828,0.0505,84178.0,84177.0,0.02009089]
[1745156845067,0.05,84176.0,84175.0,0.00053862]
[1745156845358,0.0505,84176.0,84175.0,1.35313862]
[1745156846558,0.0505,84176.0,84175.0,1.37305369]
[1745156848086,0.0505,84176.0,84175.0,1.71305369]
[1745156852405,0.0505,84176.0,84175.0,1.35284]
[1745156852580,0.0505,84176.0,84175.0,1.37271639]
[1745156856414,0.0505,84176.0,84175.0,1.71271639]
[1745156859625,0.0505,84176.0,84175.0,1.58011639]
[1745156859810,0.0505,84176.0,84175.0,1.71271639]
[1745156865762,0.0005,84180.0,84175.0,1.37371639]
[1745156865988,0.40076893,84182.0,84176.0,0.00237569]
[1745156866408,0.05,84180.0,84176.0,0.00337569]
[1745156866604,0.45076893,84182.0,84176.0,0.00337569]
[1745156867184,0.05,84180.0,84176.0,0.00337569]
[1745156867394,0.05,84183.0,84176.0,0.00337569]
[1745156867634,0.05,84181.0,84176.0,0.00337569]
[1745156867872,0.05,84180.0,84176.0,0.001]
[1745156869231,0.05,84180.0,84176.0,0.341]
[1745156869883,0.05,84180.0,84177.0,0.0023756]
[1745156870302,0.05,84180.0,84177.0,0.0033756]
[1745156871044,0.05,84180.0,84177.0,0.001]
[1745156871477,0.05,84182.0,84178.0,0.00237559]
[1745156871686,0.05,84185.0,84178.0,0.00237559]
[1745156872169,0.05,84185.0,84178.0,0.00337559]
[1745156875032,0.05,84185.0,84178.0,0.00237559]
[1745156875221,0.05,84185.0,84177.0,0.00237559]
[1745156875454,0.05,84185.0,84179.0,1.22028]
[1745156875686,0.05,84185.0,84180.0,0.00237559]
[1745156878283,0.05,84185.0,84181.0,0.13256]
[1745156878482,0.05,84185.0,84182.0,0.13256]
[1745156878657,0.05,84185.0,84183.0,0.13256]
[1745156879919,0.05,84184.0,84183.0,0.13256]
[1745156885091,0.0995,84184.0,84183.0,0.13256]
[1745156885204,0.0995,84184.0,84183.0,1.3528]
[1745156889226,0.1482,84184.0,84183.0,1.3528]
[1745156891745,0.0982,84184.0,84183.0,1.3528]
[1745156891926,0.1482,84184.0,84183.0,1.3528]
[1745156893323,0.0982,84184.0,84183.0,1.3528]
[1745156895016,0.0487,84184.0,84183.0,1.3528]
[1745156895442,0.0987,84184.0,84183.0,1.3528]
[1745156895641,0.0487,84184.0,84183.0,1.3528]
[1745156895897,0.05,84184.0,84183.0,1.3528]
[1745156900935,0.05,84185.0,84183.0,1.3528]
[1745156901140,0.05,84184.0,84183.0,1.3528]
[1745156904116,0.00013511,84186.0,84183.0,1.3528]
[1745156904330,0.00013511,84186.0,84184.0,0.00237546]
[1745156911132,0.00013511,84186.0,84183.0,1.3528]
[1745156911298,0.01134897,84186.0,84183.0,1.3528]
[1745156912570,0.00013511,84186.0,84183.0,1.3528]
[1745156913327,0.01134897,84186.0,84183.0,1.3528]
[1745156914066,0.00013511,84186.0,84183.0,1.3528]
[1745156914260,0.01134897,84186.0,84183.0,1.3528]
[1745156914456,0.00013511,84186.0,84183.0,1.3528]
[1745156918945,0.00013511,84186.0,84184.0,0.34]
[1745156920194,0.0532,84189.0,84184.0,0.34]
[1745156920195,0.004,84189.0,84184.0,0.341]
[1745156920405,0.01121386,84196.0,84184.0,0.34]
[1745156920617,0.01121386,84197.0,84185.0,0.1]
[1745156920817,0.01121386,84194.0,84185.0,0.1]
[1745156936019,0.0492,84193.0,84186.0,0.13252]
[1745156936245,0.001,84189.0,84183.0,1.22024]
[1745156936453,0.01121386,84191.0,84185.0,0.1]
[1745156936454,0.0962,84186.0,84185.0,0.1]
[1745156936677,0.10741386,84186.0,84184.0,0.13252]
[1745156936878,0.01121386,84185.0,84153.0,0.01454085]
[1745156937096,0.01121386,84185.0,84182.0,0.1]
[1745156937334,0.01121386,84185.0,84183.0,0.13252]
[1745156941571,0.0459,84184.0,84183.0,0.13252]
[1745156947010,0.0459,84184.0,84183.0,1.35264]
[1745156947460,0.05711386,84184.0,84183.0,1.35264]
[1745156952783,0.0459,84184.0,84183.0,1.35264]
[1745156953021,0.05711386,84184.0,84183.0,1.35264]
[1745156954369,0.0459,84184.0,84183.0,1.35264]
[1745156954570,0.05711386,84184.0,84183.0,1.35264]
[1745156955848,0.05655299,84184.0,84183.0,1.35264]
[1745156963884,0.62436983,84184.0,84183.0,1.22012]
[1745156964110,0.63391068,84184.0,84183.0,1.3526]
[1745156965230,0.63391068,84184.0,84183.0,1.22012]
[1745156965453,0.59357155,84184.0,84183.0,1.35272]
[1745156967061,0.64337155,84184.0,84183.0,1.35272]
[1745156969292,0.01121386,84175.0,84174.0,0.02232736]
[1745156969487,0.13066177,84175.0,84169.0,0.00013511]
[1745156969688,0.10661386,84170.0,84169.0,0.00013511]
[1745156969937,0.22606177,84170.0,84169.0,0.00013511]
[1745156970077,0.22706177,84170.0,84169.0,0.00013511]
[1745156970909,0.22606177,84170.0,84169.0,0.00013511]
[1745156971244,0.22706177,84170.0,84169.0,0.00013511]
[1745156971447,0.22706177,84170.0,84169.0,0.02207515]
[1745156972588,0.6278307,84170.0,84169.0,0.02207515]
[1745156975407,0.6278307,84170.0,84169.0,1.37507515]
[1745156981695,0.6268307,84170.0,84169.0,1.37507515]
[1745156982723,0.6278307,84170.0,84169.0,1.37507515]
[1745156982932,0.6268307,84170.0,84169.0,1.37507515]
[1745156983126,0.50838279,84170.0,84169.0,1.37507515]
[1745156999888,0.6278307,84170.0,84169.0,1.37507515]
[1745157000088,0.6278307,84170.0,84169.0,1.24255515]
[1745157000285,0.6278307,84170.0,84169.0,1.37507515]
[1745157010848,0.6278307,84170.0,84169.0,1.37211515]
[1745157031688,0.6278307,84170.0,84169.0,1.3778429]
[1745157041541,0.5780307,84170.0,84169.0,1.3778429]
[1745157041771,0.40176893,84170.0,84169.0,1.3788429]
[1745157041987,0.40076893,84170.0,84169.0,1.3788429]
[1745157042420,0.41198279,84170.0,84169.0,1.3788429]
[1745157044162,0.41198279,84170.0,84169.0,1.7188429]
[1745157044948,0.41298279,84170.0,84169.0,1.7188429]
[1745157045918,0.41198279,84170.0,84169.0,1.7188429]
[1745157046122,0.41298279,84170.0,84169.0,1.7188429]
[1745157055380,0.41298279,84170.0,84169.0,1.35828849]
[1745157057450,0.41298279,84170.0,84169.0,1.24588943]
[1745157057629,0.41298279,84170.0,84169.0,1.37832943]
[1745157064056,0.41398279,84170.0,84169.0,1.37832943]
[1745157091074,0.41298279,84170.0,84169.0,1.37832943]
[1745157091253,0.41398279,84170.0,84169.0,1.37832943]
[1745157093038,0.46348279,84170.0,84169.0,1.37832943]
[1745157093653,0.50908279,84170.0,84169.0,1.37832943]
[1745157093852,0.50908279,84170.0,84169.0,1.24588943]
[1745157094056,0.50908279,84170.0,84169.0,1.37832943]
[1745157095525,0.50843579,84170.0,84169.0,1.37832943]
[1745157098329,0.50843579,84170.0,84169.0,1.71832943]
[1745157100968,0.50943579,84170.0,84169.0,1.71832943]
[1745157101177,0.6288837,84170.0,84169.0,1.71832943]
[1745157101380,0.6288837,84170.0,84169.0,1.37832943]
[1745157102072,0.6288837,84170.0,84169.0,1.71832943]
[1745157115106,0.6278837,84170.0,84169.0,1.71832943]
[1745157119394,0.6278837,84170.0,84169.0,1.3578676]
[1745157119571,0.6278837,84170.0,84169.0,1.38294859]
[1745157125897,0.6278837,84170.0,84169.0,1.25054859]
[1745157126102,0.6278837,84170.0,84169.0,1.38294859]
[1745157127191,0.22776177,84170.0,84169.0,1.38294859]
[1745157130721,0.24330262,84170.0,84169.0,1.25054859]
[1745157130933,0.24330262,84170.0,84169.0,1.3549516]
[1745157131121,0.24330262,84170.0,84169.0,1.35720961]
[1745157134142,0.14820262,84170.0,84169.0,0.1324]
[1745157134388,0.14820262,84170.0,84169.0,0.13633776]
[1745157134596,0.24000262,84170.0,84169.0,0.13633776]
[1745157135005,0.24000262,84170.0,84169.0,0.1324]
[1745157135414,0.24000262,84170.0,84169.0,1.35697776]
[1745157150848,0.23900262,84170.0,84169.0,1.35697776]
[1745157151155,0.23800262,84170.0,84169.0,1.35697776]
[1745157151374,0.24000262,84170.0,84169.0,1.35697776]
[1745157151989,0.23900262,84170.0,84169.0,1.35697776]
[1745157171600,0.13166177,84170.0,84169.0,1.35697776]
[1745157171833,0.01139242,84170.0,84169.0,1.35697776]
[1745157172039,0.00017856,84170.0,84169.0,1.35697776]
[1745157172256,0.00017856,84170.0,84169.0,1.22457776]
[1745157172462,0.00017856,84170.0,84169.0,1.35697776]
[1745157174378,0.01139242,84170.0,84169.0,1.35697776]
[1745157180987,0.00017856,84170.0,84169.0,1.35697776]
[1745157183324,0.00017856,84170.0,84169.0,1.69697776]
[1745157184404,0.01139242,84170.0,84169.0,1.69697776]
[1745157190309,0.01139242,84170.0,84169.0,1.69697776]
[1745157207020,0.01239242,84170.0,84169.0,1.69697776]
[1745157222198,0.00117856,84170.0,84169.0,1.69697776]
[1745157222338,0.01239242,84170.0,84169.0,1.69697776]
[1745157230141,0.01139242,84170.0,84169.0,1.69697776]
[1745157234088,0.01239242,84170.0,84169.0,1.69697776]
[1745157235701,0.01239242,84170.0,84169.0,0.4724]
[1745157235922,0.01239242,84170.0,84169.0,1.35626374]